[Event "Live Chess"]
[Site "Chess.com"]
[Date "2024.06.02"]
[Round "-"]
[White "lateforthesky"]
[Black "jumush"]
[Result "1-0"]
[WhiteElo "2073"]
[BlackElo "1730"]
[TimeControl "300"]
[EndTime "8:51:34 PDT"]
[Termination "lateforthesky won by resignation"]

1. e4 {[%clk 0:04:56.5]} 1... d5 {[%clk 0:04:58.2]} 2. exd5 {[%clk 0:04:54.9]}
2... Qxd5 {[%clk 0:04:56.3]} 3. Nc3 {[%clk 0:04:53.8]} 3... Qa5 {[%clk 0:04:54]}
4. b4 {[%clk 0:04:51.7]} 4... Qxb4 {[%clk 0:04:51.5]} 5. Rb1 {[%clk 0:04:50]}
5... Qd6 {[%clk 0:04:49.3]} 6. Bd3 {[%clk 0:04:49.5]} 6... c6 {[%clk 0:04:45]}
7. Nf3 {[%clk 0:04:47.1]} 7... Qc7 {[%clk 0:04:43.5]} 8. h3 {[%clk 0:04:43.2]}
8... Be6 {[%clk 0:04:40.4]} 9. O-O {[%clk 0:04:41]} 9... Nd7 {[%clk 0:04:38.3]}
10. Re1 {[%clk 0:04:40.1]} 10... Ngf6 {[%clk 0:04:33.9]} 11. Rxe6 {[%clk
0:04:20.3]} 11... fxe6 {[%clk 0:04:31.5]} 12. Qe2 {[%clk 0:04:17.8]} 12... e5
{[%clk 0:04:29.6]} 13. Bf5 {[%clk 0:04:03]} 13... g6 {[%clk 0:04:26.4]} 14. Be6
{[%clk 0:03:44.1]} 14... Bg7 {[%clk 0:04:20.3]} 15. Ba3 {[%clk 0:03:32.3]} 15...
Nh5 {[%clk 0:03:59.4]} 16. g3 {[%clk 0:03:21.1]} 16... Bf6 {[%clk 0:03:41.1]}
17. Ne4 {[%clk 0:03:07.3]} 17... Ng7 {[%clk 0:03:36.4]} 18. Bb3 {[%clk
0:02:59.8]} 18... O-O-O {[%clk 0:03:32.7]} 19. c3 {[%clk 0:02:48.8]} 19... Rhf8
{[%clk 0:03:29.5]} 20. d4 {[%clk 0:02:45.4]} 20... exd4 {[%clk 0:03:26]} 21.
cxd4 {[%clk 0:02:43.4]} 21... Kb8 {[%clk 0:03:16.6]} 22. Bb2 {[%clk 0:02:19.1]}
22... Nf5 {[%clk 0:03:13.1]} 23. g4 {[%clk 0:02:04.4]} 23... Nd6 {[%clk
0:03:06.8]} 24. Ng3 {[%clk 0:01:22.9]} 24... Ka8 {[%clk 0:02:57.2]} 25. a4
{[%clk 0:01:17.9]} 25... Nb6 {[%clk 0:02:49.2]} 26. Bc3 {[%clk 0:01:15.5]} 26...
Nd5 {[%clk 0:02:46.7]} 27. Be1 {[%clk 0:01:11.1]} 27... Nf4 {[%clk 0:02:27.9]}
28. Qd2 {[%clk 0:01:09.5]} 28... Nc8 {[%clk 0:02:01.7]} 29. Kh2 {[%clk
0:01:02.6]} 29... h5 {[%clk 0:01:56.6]} 30. g5 {[%clk 0:00:58.7]} 30... Bg7
{[%clk 0:01:48.5]} 31. h4 {[%clk 0:00:57.7]} 31... Qd7 {[%clk 0:01:43.9]} 32.
Ng1 {[%clk 0:00:46.3]} 32... Qxd4 {[%clk 0:01:33.3]} 33. Qxd4 {[%clk 0:00:38]}
33... Rxd4 {[%clk 0:01:31]} 34. Bc3 {[%clk 0:00:37.1]} 34... e5 {[%clk
0:01:19.3]} 35. Bxd4 {[%clk 0:00:35.2]} 35... exd4 {[%clk 0:01:17.6]} 36. Ne4
{[%clk 0:00:32.6]} 36... Be5 {[%clk 0:01:11.9]} 37. Kh1 {[%clk 0:00:29.8]} 37...
Nd6 {[%clk 0:01:09.6]} 38. Nf3 {[%clk 0:00:28]} 38... Nxe4 {[%clk 0:01:06.9]}
39. Nxe5 {[%clk 0:00:26.6]} 39... Nxf2+ {[%clk 0:01:04.7]} 40. Kg1 {[%clk
0:00:25.8]} 40... Ne2+ {[%clk 0:00:55.5]} 41. Kg2 {[%clk 0:00:22.8]} 41... Nc3
{[%clk 0:00:51.1]} 42. Rf1 {[%clk 0:00:20.3]} 42... d3 {[%clk 0:00:45]} 43. Nxd3
{[%clk 0:00:18.2]} 43... Nce4 {[%clk 0:00:26.3]} 44. Nxf2 {[%clk 0:00:16.9]}
44... Rxf2+ {[%clk 0:00:24.4]} 45. Rxf2 {[%clk 0:00:16.1]} 45... Nxf2 {[%clk
0:00:23.1]} 46. Kxf2 {[%clk 0:00:15.6]} 46... Kb8 {[%clk 0:00:19.8]} 47. Bf7
{[%clk 0:00:15.5]} 47... Kc7 {[%clk 0:00:18.3]} 48. Bxg6 {[%clk 0:00:14.7]}
48... Kd6 {[%clk 0:00:16.7]} 49. Bxh5 {[%clk 0:00:14.1]} 1-0

[Event "Live Chess"]
[Site "Chess.com"]
[Date "2024.06.02"]
[Round "-"]
[White "degringolade64"]
[Black "KyryloPoluliakh"]
[Result "1-0"]
[WhiteElo "2075"]
[BlackElo "1530"]
[TimeControl "300"]
[EndTime "8:51:35 PDT"]
[Termination "degringolade64 won by resignation"]

1. e4 {[%clk 0:04:57.5]} 1... c5 {[%clk 0:04:56.4]} 2. Nf3 {[%clk 0:04:56.8]}
2... Nc6 {[%clk 0:04:50.4]} 3. Bb5 {[%clk 0:04:55.5]} 3... Nd4 {[%clk
0:04:42.1]} 4. Nxd4 {[%clk 0:04:53.5]} 4... cxd4 {[%clk 0:04:39.8]} 5. O-O
{[%clk 0:04:53]} 5... a6 {[%clk 0:04:35.1]} 6. Bc4 {[%clk 0:04:51.1]} 6... b5
{[%clk 0:04:33.4]} 7. Bxf7+ {[%clk 0:04:49.6]} 7... Kxf7 {[%clk 0:04:29.2]} 8.
Qh5+ {[%clk 0:04:48.3]} 8... g6 {[%clk 0:04:05.1]} 9. Qd5+ {[%clk 0:04:47.1]}
9... Ke8 {[%clk 0:04:04.1]} 10. Qxa8 {[%clk 0:04:45.4]} 10... Nf6 {[%clk
0:03:59.2]} 11. d3 {[%clk 0:04:40.6]} 11... Bg7 {[%clk 0:03:50.9]} 12. Bd2
{[%clk 0:04:23.4]} 12... Kf7 {[%clk 0:03:50.1]} 13. a4 {[%clk 0:04:18.2]} 13...
Rf8 {[%clk 0:03:47.3]} 14. axb5 {[%clk 0:04:15.7]} 14... axb5 {[%clk 0:03:41.5]}
15. Qa5 {[%clk 0:04:12.8]} 15... Kg8 {[%clk 0:03:38.7]} 16. Qxd8 {[%clk
0:04:10.8]} 16... Rxd8 {[%clk 0:03:35.9]} 17. Ra8 {[%clk 0:04:09.6]} 17... d5
{[%clk 0:03:26.9]} 18. e5 {[%clk 0:04:03.3]} 18... Ng4 {[%clk 0:03:23.7]} 19. f4
{[%clk 0:04:02.2]} 19... g5 {[%clk 0:03:19.2]} 20. g3 {[%clk 0:03:59]} 20...
gxf4 {[%clk 0:03:15.6]} 21. gxf4 {[%clk 0:03:57.7]} 21... h5 {[%clk 0:03:02.8]}
22. Na3 {[%clk 0:03:54.5]} 22... Nh6 {[%clk 0:03:01.5]} 23. Nxb5 {[%clk
0:03:50.4]} 23... Nf5 {[%clk 0:03:00.2]} 24. Na7 {[%clk 0:03:47.9]} 1-0

[Event "Live Chess"]
[Site "Chess.com"]
[Date "2024.06.02"]
[Round "-"]
[White "gmnorfolk"]
[Black "GEMdzq"]
[Result "1-0"]
[WhiteElo "2140"]
[BlackElo "2268"]
[TimeControl "300"]
[EndTime "8:51:43 PDT"]
[Termination "gmnorfolk won by resignation"]

1. d4 {[%clk 0:04:56.6]} 1... Nf6 {[%clk 0:04:58.6]} 2. c4 {[%clk 0:04:56]} 2...
e5 {[%clk 0:04:57.2]} 3. dxe5 {[%clk 0:04:54.1]} 3... Ng4 {[%clk 0:04:56.4]} 4.
e3 {[%clk 0:04:53.7]} 4... Nxe5 {[%clk 0:04:54.6]} 5. Nc3 {[%clk 0:04:51.4]}
5... Bb4 {[%clk 0:04:50.4]} 6. Ne2 {[%clk 0:04:47.2]} 6... O-O {[%clk
0:04:48.1]} 7. a3 {[%clk 0:04:46.2]} 7... Bxc3+ {[%clk 0:04:46.1]} 8. Nxc3
{[%clk 0:04:45.7]} 8... d6 {[%clk 0:04:44.7]} 9. f4 {[%clk 0:04:44.3]} 9... Nec6
{[%clk 0:04:27.1]} 10. Bd3 {[%clk 0:04:42.9]} 10... Qh4+ {[%clk 0:04:24.1]} 11.
g3 {[%clk 0:04:41.7]} 11... Qh3 {[%clk 0:04:22.5]} 12. Qc2 {[%clk 0:04:36.8]}
12... Bg4 {[%clk 0:04:15.8]} 13. Qf2 {[%clk 0:04:20.1]} 13... Nd7 {[%clk
0:04:12.2]} 14. Bd2 {[%clk 0:04:08]} 14... Nc5 {[%clk 0:04:10.5]} 15. Bc2 {[%clk
0:04:06.3]} 15... Bf5 {[%clk 0:04:06.2]} 16. e4 {[%clk 0:03:53.8]} 16... Rae8
{[%clk 0:04:01.9]} 17. Qe3 {[%clk 0:03:24.5]} 17... Nxe4 {[%clk 0:03:39.1]} 18.
Nxe4 {[%clk 0:03:19]} 18... Bxe4 {[%clk 0:03:37.5]} 19. Bxe4 {[%clk 0:03:17]}
19... f5 {[%clk 0:03:36.7]} 20. Bd5+ {[%clk 0:03:02.8]} 20... Kh8 {[%clk
0:03:35.1]} 21. O-O-O {[%clk 0:03:02.2]} 21... Rxe3 {[%clk 0:03:33.5]} 22. Bxe3
{[%clk 0:03:01]} 22... Qh6 {[%clk 0:03:29]} 23. h3 {[%clk 0:02:53.6]} 23... Re8
{[%clk 0:03:26.1]} 24. Rde1 {[%clk 0:02:47.6]} 24... Qg6 {[%clk 0:03:19.6]} 25.
Rhg1 {[%clk 0:02:40.6]} 25... h5 {[%clk 0:03:15.9]} 26. g4 {[%clk 0:02:28.6]}
26... Ne7 {[%clk 0:02:56.4]} 27. Bf3 {[%clk 0:02:17.5]} 27... Qf7 {[%clk
0:02:46.2]} 28. b3 {[%clk 0:01:59.3]} 28... d5 {[%clk 0:02:45.2]} 29. gxh5
{[%clk 0:01:56.3]} 29... dxc4 {[%clk 0:02:43.5]} 30. Bd4 {[%clk 0:01:54.7]}
30... cxb3 {[%clk 0:02:41.4]} 31. Bxg7+ {[%clk 0:01:45.7]} 31... Kh7 {[%clk
0:02:38.9]} 32. Bc3 {[%clk 0:01:39.2]} 32... Rg8 {[%clk 0:02:33.2]} 33. Rg5
{[%clk 0:01:22.5]} 33... Qc4 {[%clk 0:02:28.1]} 34. Rxe7+ {[%clk 0:01:09.9]}
34... Kh6 {[%clk 0:02:26.8]} 35. Kb2 {[%clk 0:00:58.1]} 35... Rxg5 {[%clk
0:02:25.6]} 36. fxg5+ {[%clk 0:00:54.2]} 36... Kxg5 {[%clk 0:02:25.5]} 37. Rg7+
{[%clk 0:00:50.8]} 37... Kf4 {[%clk 0:02:23.6]} 38. Bxb7 {[%clk 0:00:41.9]}
38... Qe2+ {[%clk 0:02:19.4]} 39. Kxb3 {[%clk 0:00:35.1]} 39... Qb5+ {[%clk
0:02:18.4]} 40. Kc2 {[%clk 0:00:30.3]} 40... Qxb7 {[%clk 0:02:16.4]} 41. h6
{[%clk 0:00:28.9]} 41... Qg2+ {[%clk 0:02:15.3]} 42. Rxg2 {[%clk 0:00:27.1]}
42... Kf3 {[%clk 0:02:12.7]} 43. Rg8 {[%clk 0:00:25.7]} 1-0

[Event "Live Chess"]
[Site "Chess.com"]
[Date "2024.06.02"]
[Round "-"]
[White "Ferrarifan27"]
[Black "Ginger_GM"]
[Result "0-1"]
[WhiteElo "2157"]
[BlackElo "2667"]
[TimeControl "300"]
[EndTime "8:51:59 PDT"]
[Termination "Ginger_GM won by resignation"]

1. e4 {[%clk 0:04:59.1]} 1... e6 {[%clk 0:04:59]} 2. d4 {[%clk 0:04:57.8]} 2...
b6 {[%clk 0:04:58.3]} 3. Nc3 {[%clk 0:04:55.5]} 3... Bb7 {[%clk 0:04:57.7]} 4.
Bd3 {[%clk 0:04:50.4]} 4... d6 {[%clk 0:04:56.3]} 5. Nf3 {[%clk 0:04:49.2]} 5...
Nd7 {[%clk 0:04:55.6]} 6. O-O {[%clk 0:04:44.2]} 6... g6 {[%clk 0:04:54.6]} 7.
Re1 {[%clk 0:04:39.5]} 7... Bg7 {[%clk 0:04:53.7]} 8. Bg5 {[%clk 0:04:35.7]}
8... Ne7 {[%clk 0:04:52.9]} 9. Qd2 {[%clk 0:04:31.8]} 9... h6 {[%clk 0:04:52.1]}
10. Bf4 {[%clk 0:04:29.1]} 10... g5 {[%clk 0:04:51.4]} 11. Be3 {[%clk
0:04:27.7]} 11... a6 {[%clk 0:04:49.2]} 12. h3 {[%clk 0:04:25.8]} 12... Ng6
{[%clk 0:04:47.7]} 13. e5 {[%clk 0:04:19.1]} 13... Bxf3 {[%clk 0:04:45.6]} 14.
Bxg6 {[%clk 0:04:16.8]} 14... fxg6 {[%clk 0:04:44.3]} 15. gxf3 {[%clk
0:04:16.1]} 15... dxe5 {[%clk 0:04:41.2]} 16. Qd3 {[%clk 0:04:13.4]} 16... Qf6
{[%clk 0:04:38.6]} 17. Qe4 {[%clk 0:04:07.7]} 17... O-O {[%clk 0:04:36.4]} 18.
Kg2 {[%clk 0:04:02.5]} 18... exd4 {[%clk 0:04:30.3]} 19. Bxd4 {[%clk 0:04:01.5]}
19... Qxd4 {[%clk 0:04:29.3]} 20. Qxe6+ {[%clk 0:04:00.8]} 20... Kh7 {[%clk
0:04:28.6]} 21. Rad1 {[%clk 0:03:58.4]} 21... Nc5 {[%clk 0:04:25.1]} 22. Qe7
{[%clk 0:03:31.1]} 22... Qf4 {[%clk 0:04:23.4]} 23. Re3 {[%clk 0:03:27.1]} 23...
Rf7 {[%clk 0:04:21.5]} 24. Qe6 {[%clk 0:03:23.4]} 24... Nxe6 {[%clk 0:04:20.1]}
0-1

[Event "Live Chess"]
[Site "Chess.com"]
[Date "2024.06.02"]
[Round "-"]
[White "Bradfield133"]
[Black "silunn"]
[Result "1-0"]
[WhiteElo "1832"]
[BlackElo "2029"]
[TimeControl "300"]
[EndTime "8:52:05 PDT"]
[Termination "Bradfield133 won by resignation"]

1. c4 {[%clk 0:04:57.1]} 1... e6 {[%clk 0:04:59.9]} 2. e4 {[%clk 0:04:55.1]}
2... d5 {[%clk 0:04:58.6]} 3. exd5 {[%clk 0:04:55]} 3... exd5 {[%clk 0:04:58.2]}
4. d4 {[%clk 0:04:54.6]} 4... Nf6 {[%clk 0:04:58]} 5. Nc3 {[%clk 0:04:53.8]}
5... Be6 {[%clk 0:04:55.9]} 6. Qb3 {[%clk 0:04:50]} 6... b6 {[%clk 0:04:50]} 7.
Bg5 {[%clk 0:04:44.6]} 7... dxc4 {[%clk 0:04:39.9]} 8. Bxc4 {[%clk 0:04:44.5]}
8... Qxd4 {[%clk 0:04:25.5]} 9. Bxe6 {[%clk 0:04:39.1]} 9... Qe5+ {[%clk
0:04:22.9]} 10. Be3 {[%clk 0:04:25.3]} 10... Qxe6 {[%clk 0:04:20.7]} 11. Qxe6+
{[%clk 0:04:22.3]} 11... fxe6 {[%clk 0:04:18.5]} 12. Nf3 {[%clk 0:04:16.6]}
12... Bb4 {[%clk 0:04:15]} 13. Rc1 {[%clk 0:04:11.4]} 13... Bxc3+ {[%clk
0:04:08.3]} 14. Rxc3 {[%clk 0:04:06.2]} 14... Nd5 {[%clk 0:04:06.5]} 15. Rd3
{[%clk 0:03:55.6]} 15... Nc6 {[%clk 0:04:01.9]} 16. a3 {[%clk 0:03:52.3]} 16...
O-O {[%clk 0:03:47.4]} 17. Bd2 {[%clk 0:03:45]} 17... Rad8 {[%clk 0:03:40.5]}
18. O-O {[%clk 0:03:36.5]} 18... e5 {[%clk 0:03:22]} 19. Ng5 {[%clk 0:03:32.2]}
19... Nd4 {[%clk 0:02:58.7]} 20. Be3 {[%clk 0:02:44.7]} 20... Ne2+ {[%clk
0:02:31.2]} 21. Kh1 {[%clk 0:02:39.5]} 21... Nxe3 {[%clk 0:02:17.5]} 22. Rxe3
{[%clk 0:02:36.3]} 22... Rxf2 {[%clk 0:02:13.7]} 23. Re1 {[%clk 0:02:25.6]}
23... Nf4 {[%clk 0:01:51]} 24. Rxe5 {[%clk 0:02:16.9]} 24... Nd3 {[%clk
0:01:35.2]} 25. Re8+ {[%clk 0:02:11.1]} 25... Rxe8 {[%clk 0:01:29.1]} 26. Rxe8+
{[%clk 0:02:08.1]} 26... Rf8 {[%clk 0:01:27.7]} 27. Rxf8+ {[%clk 0:02:03.1]}
27... Kxf8 {[%clk 0:01:27.6]} 28. Ne6+ {[%clk 0:01:55.5]} 28... Kf7 {[%clk
0:01:26.7]} 29. Nxc7 {[%clk 0:01:48.2]} 29... Nxb2 {[%clk 0:01:25.8]} 30. Nb5
{[%clk 0:01:45.9]} 30... Nc4 {[%clk 0:01:24.2]} 31. Kg1 {[%clk 0:01:29.2]} 31...
Ke6 {[%clk 0:01:09.3]} 32. a4 {[%clk 0:01:26.4]} 32... a5 {[%clk 0:00:55]} 33.
Kf2 {[%clk 0:01:21.1]} 33... Nb2 {[%clk 0:00:46.5]} 34. Nc3 {[%clk 0:01:18.3]}
34... Nd3+ {[%clk 0:00:34.1]} 35. Ke3 {[%clk 0:01:15.8]} 35... Nc5 {[%clk
0:00:33.8]} 36. Kd4 {[%clk 0:01:11]} 36... g5 {[%clk 0:00:31.5]} 37. Kc4 {[%clk
0:01:08.4]} 37... Kd6 {[%clk 0:00:30.2]} 38. Kb5 {[%clk 0:01:06.2]} 38... Kc7
{[%clk 0:00:29.5]} 39. Nd5+ {[%clk 0:01:05.2]} 39... Kb7 {[%clk 0:00:26.9]} 40.
Nxb6 {[%clk 0:01:03]} 40... Nb3 {[%clk 0:00:25.9]} 41. Nc4 {[%clk 0:01:00.7]}
41... h5 {[%clk 0:00:23.2]} 42. Nxa5+ {[%clk 0:00:59]} 42... Nxa5 {[%clk
0:00:22.5]} 43. Kxa5 {[%clk 0:00:58.1]} 43... g4 {[%clk 0:00:20.4]} 44. Kb5
{[%clk 0:00:56.5]} 44... h4 {[%clk 0:00:18.8]} 45. Kc5 {[%clk 0:00:55.1]} 45...
g3 {[%clk 0:00:16.9]} 46. h3 {[%clk 0:00:51.9]} 46... Ka6 {[%clk 0:00:16.8]} 47.
Kd4 {[%clk 0:00:50.8]} 47... Ka5 {[%clk 0:00:16.7]} 48. Ke4 {[%clk 0:00:50.1]}
48... Kxa4 {[%clk 0:00:16.6]} 49. Kf4 {[%clk 0:00:49.3]} 49... Kb5 {[%clk
0:00:16.5]} 50. Kg4 {[%clk 0:00:48.3]} 1-0

[Event "Live Chess"]
[Site "Chess.com"]
[Date "2024.06.02"]
[Round "-"]
[White "MagnersCarlsberg2870"]
[Black "TigerTank70"]
[Result "0-1"]
[WhiteElo "1744"]
[BlackElo "2189"]
[TimeControl "300"]
[EndTime "8:52:06 PDT"]
[Termination "TigerTank70 won by resignation"]

1. d4 {[%clk 0:04:57.5]} 1... d5 {[%clk 0:04:58.1]} 2. e3 {[%clk 0:04:55.9]}
2... Nf6 {[%clk 0:04:55.4]} 3. Bd3 {[%clk 0:04:54.8]} 3... c5 {[%clk 0:04:54.1]}
4. c3 {[%clk 0:04:53.4]} 4... c4 {[%clk 0:04:52.1]} 5. Bc2 {[%clk 0:04:52.3]}
5... Qb6 {[%clk 0:04:50.4]} 6. f4 {[%clk 0:04:51.3]} 6... Bg4 {[%clk 0:04:47]}
7. Nf3 {[%clk 0:04:49.9]} 7... e6 {[%clk 0:04:43.8]} 8. O-O {[%clk 0:04:48.8]}
8... Nc6 {[%clk 0:04:40]} 9. Nbd2 {[%clk 0:04:47.2]} 9... Be7 {[%clk 0:04:36]}
10. Qe1 {[%clk 0:04:46.5]} 10... Bxf3 {[%clk 0:04:30]} 11. Rxf3 {[%clk
0:04:42.3]} 11... O-O-O {[%clk 0:04:04.9]} 12. e4 {[%clk 0:04:40.8]} 12... dxe4
{[%clk 0:03:55.9]} 13. Bxe4 {[%clk 0:04:34.8]} 13... Rhe8 {[%clk 0:03:44.5]} 14.
b3 {[%clk 0:04:26.5]} 14... cxb3 {[%clk 0:03:41.9]} 15. axb3 {[%clk 0:04:21.4]}
15... Nxd4 {[%clk 0:03:38.8]} 16. cxd4 {[%clk 0:04:16.9]} 16... Qxd4+ {[%clk
0:03:36.8]} 17. Kh1 {[%clk 0:04:14.1]} 17... Qxa1 {[%clk 0:03:34.9]} 18. Nc4
{[%clk 0:03:55]} 18... Nxe4 {[%clk 0:03:23.4]} 0-1

[Event "Live Chess"]
[Site "Chess.com"]
[Date "2024.06.02"]
[Round "-"]
[White "Rusty_Bridges"]
[Black "JanMur7"]
[Result "0-1"]
[WhiteElo "1482"]
[BlackElo "2263"]
[TimeControl "300"]
[EndTime "8:52:08 PDT"]
[Termination "JanMur7 won on time"]

1. e4 {[%clk 0:04:55.6]} 1... g6 {[%clk 0:04:58.6]} 2. d4 {[%clk 0:04:54.1]}
2... Bg7 {[%clk 0:04:58.5]} 3. Nf3 {[%clk 0:04:52.1]} 3... c5 {[%clk 0:04:58]}
4. c3 {[%clk 0:04:48.8]} 4... cxd4 {[%clk 0:04:57.5]} 5. cxd4 {[%clk 0:04:47.9]}
5... d5 {[%clk 0:04:57.1]} 6. e5 {[%clk 0:04:46.3]} 6... Nc6 {[%clk 0:04:55.3]}
7. Bb5 {[%clk 0:04:44.1]} 7... f6 {[%clk 0:04:54.2]} 8. Bxc6+ {[%clk 0:04:32.4]}
8... bxc6 {[%clk 0:04:52.1]} 9. O-O {[%clk 0:04:30.1]} 9... Bg4 {[%clk
0:04:49.7]} 10. Re1 {[%clk 0:04:22.2]} 10... Bxf3 {[%clk 0:04:42]} 11. Qxf3
{[%clk 0:04:18.6]} 11... fxe5 {[%clk 0:04:41.5]} 12. dxe5 {[%clk 0:04:11.9]}
12... e6 {[%clk 0:04:38.2]} 13. Bd2 {[%clk 0:03:51.4]} 13... Qd7 {[%clk
0:04:35.4]} 14. Bb4 {[%clk 0:03:48.2]} 14... Qf7 {[%clk 0:04:33.3]} 15. Qe3
{[%clk 0:03:37]} 15... Ne7 {[%clk 0:04:29.2]} 16. Qc5 {[%clk 0:03:24.8]} 16...
O-O {[%clk 0:04:23.3]} 17. Nd2 {[%clk 0:03:19.2]} 17... Nf5 {[%clk 0:04:18]} 18.
Nf3 {[%clk 0:03:13.3]} 18... Rfc8 {[%clk 0:04:13]} 19. Ng5 {[%clk 0:02:50.7]}
19... Qe7 {[%clk 0:04:11.8]} 20. Qxe7 {[%clk 0:02:47.6]} 20... Nxe7 {[%clk
0:04:11.2]} 21. Bxe7 {[%clk 0:02:44.9]} 21... Re8 {[%clk 0:04:10.7]} 22. Bd6
{[%clk 0:02:39.1]} 22... Bh6 {[%clk 0:04:09]} 23. Nf3 {[%clk 0:02:34.8]} 23...
Bf8 {[%clk 0:04:08]} 24. Bxf8 {[%clk 0:02:32.4]} 24... Rxf8 {[%clk 0:04:07.9]}
25. Rac1 {[%clk 0:02:29.6]} 25... Rab8 {[%clk 0:04:06.2]} 26. b3 {[%clk
0:02:27.9]} 26... Rfc8 {[%clk 0:04:04.2]} 27. Ng5 {[%clk 0:02:25.9]} 27... c5
{[%clk 0:04:00.2]} 28. Nxe6 {[%clk 0:02:22.8]} 28... c4 {[%clk 0:03:59.8]} 29.
bxc4 {[%clk 0:02:19.9]} 29... dxc4 {[%clk 0:03:59.7]} 30. Nd4 {[%clk 0:02:04.1]}
30... c3 {[%clk 0:03:57.6]} 31. Ne2 {[%clk 0:01:57.7]} 31... c2 {[%clk
0:03:54.3]} 32. Nd4 {[%clk 0:01:55.8]} 32... Rb2 {[%clk 0:03:53]} 33. a4 {[%clk
0:01:52.5]} 33... a5 {[%clk 0:03:46.4]} 34. g3 {[%clk 0:01:47.3]} 34... Ra2
{[%clk 0:03:41.9]} 35. Re2 {[%clk 0:01:42]} 35... Rxa4 {[%clk 0:03:33.8]} 36.
Nxc2 {[%clk 0:01:38.8]} 36... Rac4 {[%clk 0:03:32.5]} 37. e6 {[%clk 0:01:29.6]}
37... Kf8 {[%clk 0:03:29.9]} 38. e7+ {[%clk 0:01:20.8]} 38... Ke8 {[%clk
0:03:28.4]} 39. Kf1 {[%clk 0:01:14.5]} 39... a4 {[%clk 0:03:26.7]} 40. Ke1
{[%clk 0:01:08.7]} 40... R8c7 {[%clk 0:03:25.1]} 41. Kd1 {[%clk 0:01:05.1]}
41... Rd7+ {[%clk 0:03:24.2]} 42. Rd2 {[%clk 0:01:03.3]} 42... Rdc7 {[%clk
0:03:17.5]} 43. Rd4 {[%clk 0:00:43.9]} 43... Rxd4+ {[%clk 0:03:11.5]} 44. Nxd4
{[%clk 0:00:42.1]} 44... Rd7 {[%clk 0:03:10.8]} 45. Rc4 {[%clk 0:00:39.9]} 45...
a3 {[%clk 0:03:09.4]} 46. Kc2 {[%clk 0:00:38.7]} 46... a2 {[%clk 0:03:06]} 47.
Kb2 {[%clk 0:00:35.7]} 47... Ra7 {[%clk 0:03:03.2]} 48. Ka1 {[%clk 0:00:32.8]}
48... Rxe7 {[%clk 0:03:01.2]} 49. Rc2 {[%clk 0:00:28.4]} 49... Rd7 {[%clk
0:02:57.4]} 50. Nf3 {[%clk 0:00:22.9]} 50... Rd3 {[%clk 0:02:53.8]} 51. Ne5
{[%clk 0:00:19.5]} 51... Rd5 {[%clk 0:02:52.6]} 52. Nc4 {[%clk 0:00:18.3]} 52...
Rd1+ {[%clk 0:02:47.8]} 53. Kxa2 {[%clk 0:00:17.4]} 53... Kf7 {[%clk 0:02:47.1]}
54. Kb3 {[%clk 0:00:15.8]} 54... Rd3+ {[%clk 0:02:44.8]} 55. Rc3 {[%clk
0:00:14.4]} 55... Rd5 {[%clk 0:02:44.1]} 56. f4 {[%clk 0:00:13]} 56... Kg7
{[%clk 0:02:43.2]} 57. Rc2 {[%clk 0:00:12.1]} 57... Rb5+ {[%clk 0:02:42]} 58.
Kc3 {[%clk 0:00:11.1]} 58... Rc5 {[%clk 0:02:41.5]} 59. Kd3 {[%clk 0:00:09.9]}
59... Rd5+ {[%clk 0:02:38.9]} 60. Ke3 {[%clk 0:00:08.8]} 60... Rd1 {[%clk
0:02:35.7]} 61. Ne5 {[%clk 0:00:07.2]} 61... Re1+ {[%clk 0:02:34.7]} 62. Kf2
{[%clk 0:00:06.5]} 62... Rh1 {[%clk 0:02:33.4]} 63. Kg2 {[%clk 0:00:04.9]} 63...
Rd1 {[%clk 0:02:32.9]} 64. Rc7+ {[%clk 0:00:03.8]} 64... Kf6 {[%clk 0:02:28.8]}
65. Kh3 {[%clk 0:00:03.2]} 65... Rd6 {[%clk 0:02:26.2]} 66. Kg4 {[%clk
0:00:03.1]} 66... Ke6 {[%clk 0:02:25.5]} 67. Rxh7 {[%clk 0:00:00.3]} 67... g5
{[%clk 0:02:24.2]} 0-1

[Event "Live Chess"]
[Site "Chess.com"]
[Date "2024.06.02"]
[Round "-"]
[White "stevochess11"]
[Black "resipsa6"]
[Result "0-1"]
[WhiteElo "1704"]
[BlackElo "2016"]
[TimeControl "300"]
[EndTime "8:52:09 PDT"]
[Termination "resipsa6 won by resignation"]

1. e4 {[%clk 0:04:54.5]} 1... e5 {[%clk 0:04:44.2]} 2. a3 {[%clk 0:04:50.2]}
2... a6 {[%clk 0:04:42.6]} 3. c4 {[%clk 0:04:44.8]} 3... h6 {[%clk 0:04:41.1]}
4. Nc3 {[%clk 0:04:36.1]} 4... Nf6 {[%clk 0:04:39.5]} 5. d3 {[%clk 0:04:31.6]}
5... c5 {[%clk 0:04:38.6]} 6. f3 {[%clk 0:04:25.6]} 6... Nc6 {[%clk 0:04:37.6]}
7. Be3 {[%clk 0:04:24.3]} 7... d6 {[%clk 0:04:36.6]} 8. Nge2 {[%clk 0:04:23.3]}
8... Be6 {[%clk 0:04:34.5]} 9. g3 {[%clk 0:04:22.2]} 9... Rb8 {[%clk 0:04:33.7]}
10. Bg2 {[%clk 0:04:21.1]} 10... Be7 {[%clk 0:04:32.9]} 11. O-O {[%clk
0:04:20.3]} 11... O-O {[%clk 0:04:32.4]} 12. f4 {[%clk 0:04:19.5]} 12... exf4
{[%clk 0:04:31.4]} 13. gxf4 {[%clk 0:04:18.8]} 13... b5 {[%clk 0:04:30.5]} 14.
f5 {[%clk 0:04:16.1]} 14... Bd7 {[%clk 0:04:28.8]} 15. cxb5 {[%clk 0:04:04.7]}
15... axb5 {[%clk 0:04:27.3]} 16. Qd2 {[%clk 0:04:00.5]} 16... Ne5 {[%clk
0:04:26.5]} 17. Nf4 {[%clk 0:03:44.1]} 17... Bc6 {[%clk 0:04:18.9]} 18. Ncd5
{[%clk 0:03:33.7]} 18... Bxd5 {[%clk 0:04:13.8]} 19. Nxd5 {[%clk 0:03:29.7]}
19... Nxd5 {[%clk 0:04:12.9]} 20. exd5 {[%clk 0:03:24]} 20... Bg5 {[%clk
0:04:12]} 21. Kh1 {[%clk 0:03:15.1]} 21... Bxe3 {[%clk 0:04:10.4]} 22. Qxe3
{[%clk 0:03:10.8]} 22... Qg5 {[%clk 0:04:09.8]} 23. Qxg5 {[%clk 0:03:06.3]}
23... hxg5 {[%clk 0:04:07.4]} 24. f6 {[%clk 0:03:03]} 24... Rfe8 {[%clk
0:04:02.1]} 25. fxg7 {[%clk 0:03:01.1]} 25... Nxd3 {[%clk 0:03:59.5]} 26. Rf3
{[%clk 0:02:57.6]} 26... Re1+ {[%clk 0:03:56.3]} 27. Bf1 {[%clk 0:02:55.6]}
27... Rxa1 {[%clk 0:03:53.8]} 0-1